bitfinex/quotes_BTCUSD_20251212
["timestamp","ask_amount","ask_price","bid_price","bid_amount"]
[1765554144489,0.04318244,90332.0,90330.0,0.01107051]
[1765554144696,0.011071,90326.0,90313.0,0.06988]
[1765554144871,0.04318244,90328.0,90325.0,0.01107113]
[1765554145088,0.04318244,90328.0,90325.0,0.23249164]
[1765554145282,0.01107002,90334.0,90325.0,0.23249164]
[1765554145283,0.04318244,90338.0,90334.0,0.01107002]
[1765554145584,0.003,90337.0,90334.0,0.01107002]
[1765554145782,0.003,90337.0,90332.0,0.01107027]
[1765554145980,0.01107015,90333.0,90325.0,0.01107113]
[1765554146181,0.04318244,90327.0,90326.0,0.011071]
[1765554146400,0.04318244,90326.0,90324.0,0.01107125]
[1765554146599,0.01107113,90325.0,90320.0,0.01107174]
[1765554146778,0.04318244,90326.0,90323.0,0.23249835]
[1765554146981,0.01107149,90322.0,90318.0,0.01107199]
[1765554147186,0.01107162,90321.0,90290.0,0.00099999]
[1765554147381,0.01107162,90321.0,90287.0,0.03526]
[1765554147382,0.04318244,90312.0,90303.0,0.01107382]
[1765554147588,0.04468431,90312.0,90297.0,0.01107456]
[1765554147786,0.04468431,90312.0,90307.0,0.01107333]
[1765554148009,0.01107149,90322.0,90316.0,0.01107223]
[1765554148284,0.1646345,90313.0,90310.0,0.00024051]
[1765554148708,0.01107199,90318.0,90310.0,0.22169831]
[1765554149060,0.01106892,90343.0,90338.0,0.01106953]
[1765554149268,0.01106978,90336.0,90331.0,0.01107039]
[1765554149477,0.01107051,90330.0,90325.0,0.01107113]
[1765554149681,0.22140793,90331.0,90325.0,0.01107113]
[1765554149888,0.22136667,90348.0,90334.0,0.01107002]
[1765554150097,0.32314,90360.0,90333.0,0.01107015]
[1765554150098,0.01106953,90338.0,90333.0,0.01107015]
[1765554150334,0.043188,90335.0,90334.0,0.2324706]
[1765554150537,0.01106855,90346.0,90332.0,0.23247402]
[1765554150538,0.043188,90346.0,90343.0,0.01106892]
[1765554150751,0.01808,90354.0,90348.0,0.01106831]
[1765554150959,0.02914757,90354.0,90347.0,0.01106843]
[1765554151234,0.2409357,90354.0,90346.0,0.01106855]
[1765554151457,0.043188,90362.0,90356.0,0.22134655]
[1765554151679,0.043188,90363.0,90362.0,0.01106659]
[1765554151906,0.0110661,90366.0,90347.0,0.22136813]
[1765554151907,0.01106451,90379.0,90370.0,0.01106561]
[1765554152125,0.01808,90380.0,90373.0,0.01106525]
[1765554152355,0.01808,90380.0,90365.0,0.01106623]
[1765554152356,0.00150187,90379.0,90365.0,0.01106623]
[1765554152556,0.22129279,90378.0,90367.0,0.01106598]
[1765554152817,0.043188,90376.0,90375.0,0.22130013]
[1765554153041,0.00150187,90378.0,90375.0,0.23236513]
[1765554153259,0.043188,90372.0,90371.0,0.01106549]
[1765554153529,0.01106537,90372.0,90369.0,0.01106574]
[1765554153782,0.01106537,90372.0,90363.0,0.23239424]
[1765554153783,0.01106659,90362.0,90356.0,0.01106733]
[1765554154036,0.01106537,90372.0,90364.0,0.22132707]
[1765554154291,0.00150187,90370.0,90367.0,0.01106598]
[1765554154539,0.01106427,90381.0,90373.0,0.01106525]
[1765554154764,0.22126051,90392.0,90387.0,0.01106353]
[1765554154969,0.00150187,90382.0,90376.0,0.01106488]
[1765554155153,0.01106341,90388.0,90384.0,0.0110639]
[1765554155281,0.04468987,90398.0,90394.0,0.01106268]
[1765554155282,0.01106231,90397.0,90394.0,0.01106268]
[1765554155487,0.00150187,90398.0,90389.0,0.01106329]
[1765554155488,0.043188,90394.0,90389.0,0.01106329]
[1765554155685,0.043188,90394.0,90391.0,0.01106304]
[1765554155937,0.00150187,90398.0,90394.0,0.22125063]
[1765554156136,0.00150187,90398.0,90395.0,0.23231169]
[1765554156312,0.01106096,90408.0,90404.0,0.01106145]
[1765554156489,0.0110617,90402.0,90396.0,0.01106243]
[1765554156693,0.01106219,90398.0,90394.0,0.01106268]
[1765554156981,0.01106231,90397.0,90391.0,0.22126096]
[1765554157203,0.0110617,90402.0,90399.0,0.01106206]
[1765554157413,0.05424933,90405.0,90401.0,0.01106182]
[1765554157615,0.23229273,90404.0,90395.0,0.01106255]
[1765554157871,0.01106047,90412.0,90406.0,0.01106121]
[1765554158097,0.043188,90417.0,90416.0,0.01105998]
[1765554158308,0.043188,90417.0,90416.0,0.22119978]
[1765554158610,0.043188,90417.0,90408.0,0.22121914]
[1765554158611,0.043188,90434.0,90390.0,0.00099999]
[1765554158787,0.01105913,90423.0,90415.0,0.01106011]
[1765554158931,0.01105925,90422.0,90418.0,0.01105974]
[1765554159137,0.043188,90415.0,90413.0,0.01106035]
[1765554159334,0.01106109,90407.0,90402.0,0.0110617]
[1765554159536,0.043188,90405.0,90402.0,0.0110617]
[1765554159777,0.2211947,90419.0,90413.0,0.01106035]
[1765554159778,0.05424762,90419.0,90413.0,0.01106035]
[1765554159992,0.00150187,90419.0,90416.0,0.01105998]
[1765554160415,0.00150187,90419.0,90417.0,0.22119734]
[1765554160629,0.043188,90423.0,90417.0,0.22119734]
[1765554160630,0.043188,90423.0,90420.0,0.0110595]
[1765554160819,0.03711,90450.0,90418.0,0.22119489]
[1765554160820,0.01105693,90441.0,90435.0,0.01105766]
[1765554161025,0.23218825,90444.0,90439.0,0.01105717]
[1765554161259,0.05664323,90447.0,90444.0,0.01105656]
[1765554161464,0.05514136,90447.0,90445.0,0.22112886]
[1765554161663,0.05514136,90447.0,90445.0,0.29100886]
[1765554161850,0.05514136,90447.0,90446.0,0.06988]
[1765554162225,0.05514136,90447.0,90446.0,0.15227509]
[1765554162434,0.01105326,90471.0,90467.0,0.01105375]
[1765554162660,0.043188,90473.0,90470.0,0.04631338]
[1765554162864,0.043188,90485.0,90479.0,0.01105228]
[1765554163093,0.043188,90485.0,90470.0,0.03526]
[1765554163094,0.043188,90476.0,90470.0,0.03526]
[1765554163295,0.01105387,90466.0,90462.0,0.01105436]
[1765554163469,0.043188,90465.0,90462.0,0.01105436]
[1765554163668,0.043188,90465.0,90459.0,0.22109316]
[1765554163669,0.01255452,90476.0,90469.0,0.01105351]
[1765554163891,0.05424151,90469.0,90464.0,0.01105412]
[1765554164052,0.01105363,90468.0,90465.0,0.01105399]
[1765554164234,0.01105277,90475.0,90470.0,0.01105338]
[1765554164438,0.01105302,90473.0,90468.0,0.01105363]
[1765554164638,0.01105277,90475.0,90470.0,0.01105338]
[1765554164847,0.01105289,90474.0,90470.0,0.01105338]
[1765554165052,0.001,90469.0,90468.0,0.01105363]
[1765554165254,0.001,90469.0,90466.0,0.01105387]
[1765554165503,0.2210582,90474.0,90468.0,0.01105363]
[1765554165726,0.005,90476.0,90473.0,0.23211344]
[1765554165927,0.01104825,90512.0,90484.0,0.22103355]
[1765554166157,0.0004,90520.0,90517.0,0.01104764]
[1765554166340,0.00051696,90520.0,90519.0,0.25332808]
[1765554166741,0.00051696,90520.0,90519.0,0.32320808]
[1765554167468,0.00151696,90520.0,90519.0,0.25332808]
[1765554167670,0.00151696,90520.0,90517.0,0.01104764]
[1765554167880,0.00151696,90520.0,90518.0,0.29083052]
[1765554167881,0.00051696,90520.0,90518.0,0.29083052]
[1765554168089,0.00251696,90520.0,90519.0,0.002]
[1765554168290,0.00251696,90520.0,90519.0,0.07188]
[1765554168501,0.00051696,90520.0,90519.0,0.12346808]
[1765554168703,0.00051696,90520.0,90518.0,0.22095052]
[1765554168904,0.00251696,90520.0,90519.0,0.07188]
[1765554169332,0.0004,90540.0,90537.0,0.0110452]
[1765554169521,0.0004,90540.0,90539.0,0.02927]
[1765554169957,0.0004,90540.0,90539.0,0.09915]
[1765554170132,0.0004,90540.0,90539.0,0.19864259]
[1765554170360,0.0004,90540.0,90539.0,0.15545459]
[1765554170556,0.0004,90540.0,90539.0,0.09915]
[1765554171230,0.0004,90540.0,90539.0,0.10315]
[1765554171822,0.0004,90540.0,90539.0,0.09915]
[1765554172015,0.0014,90540.0,90539.0,0.10115]
[1765554172231,0.0004,90540.0,90539.0,0.10015]
[1765554172439,0.0004,90540.0,90539.0,0.32173928]
[1765554172659,0.0014,90540.0,90539.0,0.03427]
[1765554172862,0.00190187,90540.0,90539.0,0.03027]
[1765554173068,0.00190187,90540.0,90539.0,0.001]
[1765554173276,0.00190187,90540.0,90536.0,0.01104533]
[1765554173483,0.043188,90535.0,90532.0,0.01104581]
[1765554173740,0.00190187,90540.0,90537.0,0.0110452]
[1765554173927,0.01104618,90529.0,90524.0,0.01104679]
[1765554174143,0.01104642,90527.0,90524.0,0.00011696]
[1765554174356,0.01254805,90529.0,90526.0,0.01104655]
[1765554174357,0.00150187,90529.0,90526.0,0.01104655]
[1765554174566,0.01254829,90527.0,90524.0,0.00011696]
[1765554174778,0.220931,90526.0,90524.0,0.00011696]
[1765554174989,0.01254829,90527.0,90524.0,0.00011696]
[1765554175200,0.04468987,90526.0,90524.0,0.00011696]
[1765554175413,0.26562331,90525.0,90524.0,0.00011696]
[1765554176034,0.26562331,90525.0,90524.0,0.00111696]
[1765554176271,0.33985331,90525.0,90524.0,0.00111696]
[1765554176931,0.33985331,90525.0,90484.0,0.04080167]
[1765554176932,0.01105094,90490.0,90484.0,0.04080167]
[1765554177160,0.0001167,90490.0,90489.0,0.01105106]
[1765554177603,0.0001167,90490.0,90489.0,0.08726033]
[1765554178044,0.0001167,90490.0,90489.0,0.10004799]
[1765554178399,0.0001167,90490.0,90489.0,0.02947799]
[1765554178601,0.0031167,90490.0,90489.0,0.08784804]
[1765554178804,0.0031167,90490.0,90489.0,0.08884804]
[1765554179202,0.0031167,90490.0,90489.0,0.08784804]
[1765554179790,0.0001167,90490.0,90489.0,0.18105443]
[1765554180035,0.0001167,90490.0,90489.0,0.17888233]
[1765554180271,0.23234276,90540.0,90490.0,0.05101838]
[1765554180416,0.00051685,90540.0,90539.0,0.03238]
[1765554180827,0.00051685,90540.0,90539.0,0.10295]
[1765554181031,0.01104167,90566.0,90558.0,0.22085293]
[1765554181241,0.01104215,90562.0,90551.0,0.0110435]
[1765554181465,0.02402,90560.0,90541.0,0.22089258]
[1765554181673,0.01104423,90545.0,90539.0,0.03238]
[1765554181871,0.22189684,90540.0,90539.0,0.03338]
[1765554182078,0.22339871,90540.0,90539.0,0.001]
[1765554182433,0.00250187,90540.0,90539.0,0.07057]
[1765554182553,0.001,90540.0,90539.0,0.10192623]
[1765554182757,0.001,90540.0,90535.0,0.01104545]
[1765554182758,0.22093588,90524.0,90519.0,0.07057]
[1765554182960,0.22243775,90524.0,90523.0,0.00011685]
[1765554183218,0.26562575,90524.0,90523.0,0.00011685]
[1765554184123,0.22243775,90524.0,90523.0,0.00011685]
[1765554184323,0.26562575,90524.0,90523.0,0.00311685]
[1765554184530,0.26562575,90524.0,90523.0,0.00111685]
[1765554184987,0.26845805,90524.0,90523.0,0.00011685]
[1765554185198,0.34268805,90524.0,90523.0,0.00011685]
[1765554185402,0.26845805,90524.0,90523.0,0.00011685]
[1765554185623,0.34468805,90524.0,90523.0,0.00011685]
[1765554185829,1.63538805,90524.0,90523.0,0.00011685]
[1765554186240,0.63538805,90524.0,90523.0,0.00011685]
[1765554186678,1.56188805,90524.0,90523.0,0.00011685]
[1765554186850,1.63138805,90524.0,90523.0,0.00011685]
[1765554187278,1.63538805,90524.0,90523.0,0.00011685]
[1765554187485,1.63438805,90524.0,90523.0,1e-08]
[1765554187689,0.01105277,90475.0,90474.0,0.00629808]
[1765554187861,0.01105216,90480.0,90475.0,0.01105277]
[1765554188083,0.01105192,90482.0,90477.0,0.01105253]
[1765554188241,0.043188,90481.0,90477.0,0.01105253]
[1765554188430,0.01105253,90477.0,90474.0,0.00038991]
[1765554188779,0.01105216,90480.0,90475.0,0.01105277]
[1765554189027,0.01105216,90480.0,90477.0,0.01105253]
[1765554189247,0.01105253,90477.0,90474.0,0.00038991]
[1765554189439,0.043188,90475.0,90474.0,0.00038991]
[1765554189703,0.22099564,90500.0,90491.0,0.01105082]
[1765554189918,0.01105033,90495.0,90492.0,0.00765289]
[1765554190124,0.043188,90487.0,90486.0,0.01105143]
[1765554190364,0.043188,90489.0,90488.0,0.01105118]
[1765554190796,0.043188,90507.0,90504.0,0.2209847]
[1765554191014,0.01104874,90508.0,90503.0,0.01104935]
[1765554191216,0.01104947,90502.0,90498.0,0.01104996]
[1765554191420,0.01104947,90502.0,90496.0,0.22100277]
[1765554191421,0.01104886,90507.0,90501.0,0.0110496]
[1765554191646,0.00150187,90508.0,90506.0,0.02975]
[1765554191871,0.22247705,90508.0,90506.0,0.02975]
[1765554192085,0.00150187,90508.0,90506.0,0.02975]
[1765554192287,0.043188,90507.0,90506.0,0.02975]
[1765554192935,0.043188,90507.0,90501.0,0.0110496]
[1765554192936,0.01104972,90500.0,90495.0,0.02975]
[1765554193144,0.0110496,90501.0,90497.0,0.01105009]
[1765554193312,0.043188,90502.0,90500.0,0.01104972]
[1765554193637,0.23204163,90501.0,90497.0,0.0001167]
[1765554193776,0.04342586,90504.0,90501.0,0.0110496]
[1765554193982,0.01104935,90503.0,90499.0,0.01104984]
[1765554194264,0.01104972,90500.0,90497.0,0.0001167]
[1765554194499,0.043188,90498.0,90497.0,0.0001167]
[1765554195446,0.00123786,90504.0,90501.0,0.0110496]
[1765554195673,0.00123786,90504.0,90502.0,0.00847972]
[1765554195930,0.00123786,90504.0,90502.0,0.22946821]
[1765554196139,0.00123786,90504.0,90503.0,0.07057]
[1765554196351,0.00123786,90504.0,90503.0,0.0768469]
[1765554196487,0.00023786,90504.0,90503.0,0.0768469]
[1765554197158,0.00023786,90504.0,90503.0,0.07674512]
[1765554197359,0.00123786,90504.0,90503.0,0.07674512]
[1765554197563,0.01228709,90504.0,90499.0,0.01104984]
[1765554197825,0.0110496,90501.0,90496.0,0.01105021]
[1765554198104,0.00123786,90504.0,90501.0,0.0110496]
[1765554198339,0.00123786,90504.0,90501.0,0.23203993]
[1765554198548,0.00123786,90504.0,90503.0,0.22098714]
[1765554199169,0.00123786,90504.0,90501.0,0.23203993]
[1765554199340,0.00123786,90504.0,90501.0,0.0110496]
[1765554199500,0.00023786,90504.0,90501.0,0.01722471]
[1765554199941,0.00023786,90504.0,90502.0,0.29367959]
[1765554200143,0.00023786,90504.0,90503.0,0.0114775]
[1765554200345,0.00023786,90504.0,90503.0,0.10215623]
[1765554200549,0.00023786,90504.0,90498.0,0.01104996]
[1765554200709,0.00023786,90504.0,90500.0,0.01104972]
[1765554200913,0.00023786,90504.0,90501.0,0.23204163]
[1765554201112,0.01104947,90502.0,90497.0,0.0001167]
[1765554201318,0.043188,90501.0,90498.0,0.23204774]
[1765554201528,0.00273973,90504.0,90501.0,0.0110496]
[1765554201760,0.00273973,90504.0,90503.0,0.22098714]
[1765554202234,0.00123786,90504.0,90503.0,0.29274714]
[1765554202442,0.00123786,90504.0,90503.0,0.36347698]
[1765554202631,0.00023786,90504.0,90503.0,0.29274714]
[1765554202983,0.00123786,90504.0,90503.0,0.22098714]
[1765554203189,0.01128709,90504.0,90501.0,0.0110496]
[1765554203473,0.043188,90501.0,90499.0,0.01104984]
[1765554203647,0.00123786,90504.0,90502.0,0.25073959]
[1765554203979,0.00123786,90504.0,90501.0,0.0110496]
[1765554203980,0.01104972,90500.0,90497.0,0.0001167]
[1765554204234,0.22099691,90499.0,90497.0,0.0001167]
[1765554204442,0.05500529,90498.0,90497.0,0.0001167]
[1765554204790,0.12561529,90498.0,90497.0,0.0001167]
[1765554205369,0.01181729,90498.0,90497.0,0.0001167]
[1765554205486,0.01031542,90503.0,90500.0,0.01104972]
[1765554205695,0.01128709,90504.0,90497.0,0.01116679]
[1765554205893,0.05423772,90500.0,90497.0,0.0001167]
[1765554206137,0.001,90499.0,90497.0,0.0001167]
[1765554206682,0.27523392,90500.0,90497.0,0.0001167]
[1765554206855,0.043188,90500.0,90497.0,0.23216638]
[1765554207241,0.01128709,90504.0,90501.0,0.0110496]
[1765554207443,0.043188,90503.0,90501.0,0.0110496]
[1765554207808,0.00023786,90504.0,90501.0,0.0110496]
[1765554208016,0.00023786,90504.0,90503.0,0.22098714]
[1765554208578,0.00023786,90504.0,90503.0,0.29274714]
[1765554208739,0.00023786,90504.0,90503.0,0.22098714]
[1765554208923,0.00023786,90504.0,90475.0,0.2907]
[1765554209125,0.00023786,90504.0,90502.0,0.22098806]
[1765554209126,0.00123786,90504.0,90502.0,0.22098806]
[1765554209344,0.00123786,90504.0,90503.0,0.00613217]
[1765554209562,0.00023786,90504.0,90501.0,0.0110496]
[1765554209766,0.00023786,90504.0,90497.0,0.0001167]
[1765554209767,0.01104972,90500.0,90497.0,0.0001167]
[1765554209971,0.043188,90498.0,90497.0,0.0001167]
[1765554210175,0.04468987,90500.0,90497.0,0.01116679]
[1765554210374,0.01255159,90500.0,90497.0,0.0001167]
[1765554210693,0.27673545,90500.0,90497.0,0.0001167]
[1765554210894,0.043188,90498.0,90497.0,0.0011167]
[1765554211153,0.00150187,90498.0,90497.0,0.0011167]
[1765554211344,1.12561977,90498.0,90497.0,0.0001167]
[1765554211475,1.43898969,90498.0,90497.0,0.0001167]
[1765554212114,1.43898969,90498.0,90470.0,0.07176]
[1765554212115,0.01105106,90489.0,90470.0,0.07176]
[1765554212325,0.05424004,90481.0,90476.0,0.01105265]
[1765554212519,0.0103199,90480.0,90477.0,0.01105253]
[1765554212764,0.22102808,90487.0,90481.0,0.03238]
[1765554212951,0.02137133,90486.0,90481.0,0.04343204]
[1765554213159,0.0103199,90487.0,90484.0,0.23208522]
[1765554213360,0.00211666,90489.0,90488.0,0.22102378]
[1765554213601,0.00011666,90489.0,90488.0,0.22102378]
[1765554213944,0.00011666,90489.0,90486.0,0.23207795]
[1765554214148,0.05423943,90486.0,90481.0,0.03238]
[1765554214367,0.043188,90486.0,90484.0,0.01105167]
[1765554214563,0.043188,90488.0,90486.0,0.23208009]
[1765554214795,0.00511666,90489.0,90487.0,0.22102622]
[1765554215899,0.00511666,90489.0,90486.0,0.01105143]
[1765554216100,0.00411666,90489.0,90487.0,0.29278622]
[1765554216298,0.00011666,90489.0,90488.0,0.09025361]
[1765554216554,0.00111666,90489.0,90488.0,0.09025361]
[1765554216767,0.00011666,90489.0,90488.0,0.1323278]
[1765554216988,0.00011666,90489.0,90488.0,0.18042159]
[1765554217535,0.00011666,90489.0,90488.0,0.0901398]
[1765554217791,0.00111666,90489.0,90488.0,0.0921398]
[1765554218011,0.00111666,90489.0,90488.0,0.0911398]
[1765554218173,0.00111666,90489.0,90488.0,0.14115819]
[1765554218355,0.00111666,90489.0,90488.0,0.14415819]
[1765554218582,0.00111666,90489.0,90488.0,0.23755931]
[1765554218785,0.00111666,90489.0,90488.0,0.22017951]
[1765554219188,0.00011666,90489.0,90488.0,0.21817951]
[1765554219538,0.00011666,90489.0,90488.0,0.21517951]
[1765554219814,0.00111666,90489.0,90488.0,0.002]
[1765554220010,0.00111666,90489.0,90488.0,0.08056508]
[1765554220218,0.00111666,90489.0,90488.0,0.12648508]
[1765554220432,0.00011666,90489.0,90488.0,0.12748508]
[1765554220873,0.00111666,90489.0,90488.0,0.12648508]
[1765554221079,0.00011666,90489.0,90488.0,0.13614675]
[1765554221302,0.00011666,90489.0,90488.0,0.13814675]
[1765554222218,0.00011666,90489.0,90488.0,0.13814611]
[1765554222453,0.00111666,90489.0,90488.0,0.14014611]
[1765554222886,0.00011666,90489.0,90488.0,0.13614611]
[1765554223106,0.00111666,90489.0,90488.0,0.13814611]
[1765554223322,0.00111666,90489.0,90488.0,0.07049205]
[1765554223530,0.00011666,90489.0,90488.0,0.14025205]
[1765554223755,0.00111666,90489.0,90488.0,0.14225205]
[1765554223991,0.00011666,90489.0,90488.0,0.14025205]
[1765554224210,0.00011666,90489.0,90488.0,0.2479557]
[1765554224423,0.00011666,90489.0,90488.0,0.11968]
[1765554224424,0.00111666,90489.0,90488.0,0.11968]
[1765554224602,0.00111666,90489.0,90488.0,0.12797856]
[1765554224840,0.00111666,90489.0,90488.0,0.19002892]
[1765554225893,0.00111666,90489.0,90488.0,0.18802892]
[1765554226100,0.00011666,90489.0,90488.0,0.28201311]
[1765554226333,0.00011666,90489.0,90488.0,0.26668258]
[1765554226540,0.00023786,90504.0,90501.0,0.0110496]
[1765554226750,0.00023786,90504.0,90503.0,0.04592]
[1765554227211,0.00023786,90504.0,90503.0,0.11768]
[1765554227632,0.00023786,90504.0,90503.0,0.22818762]
[1765554228008,0.00023786,90504.0,90503.0,0.11768]
[1765554228280,0.00023786,90504.0,90503.0,0.04592]
[1765554228474,0.00173973,90504.0,90501.0,0.23404079]
[1765554228663,0.043188,90502.0,90501.0,0.0130496]
[1765554228790,0.00023786,90504.0,90501.0,0.0130496]
[1765554228991,0.00023786,90504.0,90502.0,0.22098959]
[1765554229191,0.00123786,90504.0,90503.0,0.05224513]
[1765554229437,0.00273973,90504.0,90503.0,0.003]
[1765554229606,0.00173973,90504.0,90503.0,0.001]
[1765554229961,0.00173973,90504.0,90501.0,0.001]
[1765554230108,0.00273973,90504.0,90501.0,0.001]
[1765554230447,0.01378896,90504.0,90501.0,0.001]
[1765554230597,0.01104947,90502.0,90492.0,0.2320631]
[1765554230795,0.01105009,90497.0,90492.0,0.0110507]
[1765554231058,0.01105094,90490.0,90486.0,0.01105143]
[1765554231286,0.043188,90493.0,90490.0,0.01105094]
[1765554231485,0.01105057,90493.0,90489.0,0.01105106]
[1765554231643,0.043188,90493.0,90490.0,0.23206872]
[1765554231965,0.043188,90493.0,90490.0,0.01105094]
[1765554232204,0.043188,90494.0,90493.0,0.01105057]
[1765554232414,0.01255196,90497.0,90493.0,0.01105057]
[1765554232596,0.01255196,90497.0,90492.0,0.22101327]
[1765554232597,0.043188,90490.0,90489.0,0.01105106]
[1765554233167,0.00150187,90497.0,90489.0,0.01105106]
[1765554233168,0.043188,90495.0,90494.0,0.01105045]
[1765554233370,0.043188,90493.0,90492.0,0.0110507]
[1765554233579,0.043188,90493.0,90492.0,0.23206412]
[1765554233753,0.001,90494.0,90492.0,0.23206412]
[1765554233960,0.00150187,90497.0,90494.0,0.23205897]
[1765554234368,0.00150187,90497.0,90496.0,0.22100424]
[1765554234640,0.00150187,90497.0,90489.0,0.001]
[1765554234641,0.043188,90490.0,90489.0,0.001]
[1765554234818,0.088858,90490.0,90489.0,0.001]
[1765554235271,0.043188,90490.0,90489.0,0.001]
[1765554235714,0.113498,90490.0,90489.0,0.001]
[1765554235885,0.05423906,90489.0,90484.0,0.01105167]
[1765554236099,0.05423906,90489.0,90485.0,0.01105155]
[1765554236100,0.043188,90489.0,90485.0,0.01105155]
[1765554236302,0.043188,90489.0,90486.0,0.01105143]
[1765554236628,0.05423906,90489.0,90486.0,0.01105143]
[1765554236874,0.01105131,90487.0,90484.0,0.01105167]
[1765554237110,0.045188,90489.0,90486.0,0.01105143]
[1765554237314,0.046188,90489.0,90487.0,0.22102622]
[1765554237504,0.044188,90489.0,90487.0,0.22102622]
[1765554237756,0.001,90489.0,90486.0,0.01105143]
[1765554237966,0.002,90489.0,90486.0,0.01105143]
[1765554238173,0.05423967,90484.0,90480.0,0.01105216]
[1765554238376,0.043188,90484.0,90481.0,0.23209292]
[1765554238510,0.043188,90484.0,90481.0,0.01105204]
[1765554239567,0.043188,90484.0,90481.0,0.23309119]
[1765554239771,0.001,90489.0,90486.0,0.01105143]
[1765554239912,0.2210051,90496.0,90492.0,0.0110507]
[1765554239913,0.01105021,90496.0,90492.0,0.0110507]
[1765554240117,0.00150187,90497.0,90495.0,0.02975]
[1765554240312,0.00150187,90497.0,90493.0,0.01105057]
[1765554240313,0.01105021,90496.0,90493.0,0.01105057]
[1765554240515,0.00150187,90497.0,90494.0,0.01105045]
[1765554240789,0.00150187,90497.0,90493.0,0.01105057]
[1765554240790,0.01105021,90496.0,90493.0,0.01105057]
[1765554241023,0.00150187,90497.0,90495.0,0.22100485]
[1765554241227,0.002,90496.0,90495.0,0.22100485]
[1765554241461,0.002,90496.0,90489.0,0.02975]
[1765554241676,0.01105143,90486.0,90480.0,0.00011666]
[1765554241876,0.043188,90483.0,90481.0,0.22104088]
[1765554242007,0.043188,90483.0,90480.0,0.01116882]
[1765554242272,0.043188,90483.0,90480.0,0.00011666]
[1765554242273,0.05423979,90483.0,90480.0,0.00011666]
[1765554242472,0.043188,90483.0,90480.0,0.01116882]
[1765554242670,0.01105167,90484.0,90481.0,0.01105204]
[1765554242871,0.01105106,90489.0,90486.0,0.01105143]
[1765554243076,0.00023786,90504.0,90501.0,0.0110496]
[1765554243304,0.00023786,90504.0,90500.0,0.22099447]
[1765554243503,0.00023786,90504.0,90498.0,0.22099841]
[1765554243797,0.05423735,90503.0,90498.0,0.23204842]
[1765554243999,0.01104935,90503.0,90499.0,0.01104984]
[1765554244350,0.01104947,90502.0,90498.0,0.01104996]
[1765554244520,0.0542376,90501.0,90497.0,0.01105009]
[1765554244720,0.01428709,90504.0,90500.0,0.01104972]
[1765554244902,0.01428709,90504.0,90501.0,0.0110496]
[1765554245099,0.01428709,90504.0,90497.0,0.01105009]
[1765554245100,0.01104935,90503.0,90497.0,0.01105009]
[1765554245279,0.01104935,90503.0,90498.0,0.23204825]
[1765554245481,0.01104935,90503.0,90496.0,0.22100424]
[1765554245482,0.01104947,90502.0,90496.0,0.22100424]
[1765554245684,0.01105118,90488.0,90486.0,0.02975]
[1765554245911,0.00150187,90502.0,90499.0,0.01104984]
[1765554246114,0.23205077,90498.0,90491.0,0.01105082]
[1765554246316,0.01105179,90483.0,90480.0,0.00011666]
[1765554246526,0.22103932,90482.0,90480.0,0.00011666]
[1765554246725,0.043188,90481.0,90480.0,0.00011666]
[1765554246924,0.04468987,90481.0,90480.0,0.00011666]
[1765554247394,0.26573075,90481.0,90480.0,0.00011666]
[1765554247978,0.04468987,90481.0,90480.0,0.00011666]
[1765554248507,0.09035987,90481.0,90480.0,0.00011666]
[1765554248682,0.16066987,90481.0,90480.0,0.00011666]
[1765554249021,0.16166987,90481.0,90480.0,0.00011666]
[1765554249227,0.17300109,90481.0,90480.0,0.00011666]
[1765554249429,0.46369771,90481.0,90480.0,0.00011666]
[1765554249667,0.043188,90445.0,90442.0,0.0110568]
[1765554249880,0.00011668,90445.0,90443.0,0.22113375]
[1765554250075,0.00011668,90445.0,90442.0,0.23219082]
[1765554250943,0.00011668,90445.0,90444.0,0.04828]
[1765554251146,0.00011668,90445.0,90442.0,0.23219082]
[1765554251391,0.00011668,90445.0,90444.0,0.04828]
[1765554251599,0.00011668,90445.0,90444.0,0.056903]
[1765554251771,0.00011668,90445.0,90444.0,0.127503]
[1765554251973,0.00011668,90445.0,90444.0,0.11888]
[1765554252201,0.00011668,90445.0,90444.0,0.16889839]
[1765554252356,0.01105241,90478.0,90473.0,0.01105302]
[1765554252551,0.00011681,90478.0,90476.0,0.23210574]
[1765554253016,0.01267109,90478.0,90474.0,0.01105289]
[1765554253220,0.00161868,90478.0,90475.0,0.22105554]
[1765554253433,0.00011681,90478.0,90477.0,0.26933065]
[1765554254042,0.00211681,90478.0,90477.0,0.26933065]
[1765554254350,0.00211681,90478.0,90477.0,0.33993065]
[1765554255316,0.00111681,90478.0,90477.0,0.26933065]
[1765554255514,0.00111681,90478.0,90477.0,0.34093065]
[1765554255715,0.00011681,90478.0,90477.0,0.34093065]
[1765554256322,0.00011681,90478.0,90477.0,0.34193065]
[1765554256743,0.00011681,90478.0,90477.0,0.34093065]
[1765554256971,0.00011681,90478.0,90477.0,0.33993065]
[1765554257229,0.00011681,90478.0,90477.0,0.34293065]
[1765554257431,0.00011681,90478.0,90477.0,0.47192008]
[1765554257744,0.00011681,90478.0,90477.0,0.34293065]
[1765554258368,0.00011681,90478.0,90477.0,0.34193065]
[1765554258574,0.00011681,90478.0,90477.0,0.33993065]
[1765554258812,0.00011681,90478.0,90477.0,0.34393065]
[1765554259415,0.00011681,90478.0,90477.0,0.34193065]
[1765554259640,0.00011681,90478.0,90477.0,0.34112065]
[1765554259826,0.00011681,90478.0,90477.0,0.22505065]
[1765554259977,0.04330481,90478.0,90477.0,0.002]
[1765554260581,0.01116922,90478.0,90475.0,0.01105277]
[1765554260786,0.00161868,90478.0,90477.0,0.002]
[1765554260999,0.00011681,90478.0,90477.0,0.05756874]
[1765554261224,0.00011681,90478.0,90477.0,0.12507874]
[1765554261453,0.00011681,90478.0,90477.0,0.05756874]
[1765554261683,0.00011681,90478.0,90477.0,0.002]
[1765554262012,0.00011681,90478.0,90477.0,0.004]
[1765554262425,0.04480668,90478.0,90477.0,0.002]
[1765554262626,0.043188,90476.0,90474.0,0.01105289]
[1765554262809,0.043188,90475.0,90474.0,0.01105289]
[1765554263016,0.00161868,90478.0,90475.0,0.23210831]
[1765554263406,0.00111681,90478.0,90477.0,0.0484]
[1765554263609,0.00011681,90478.0,90477.0,0.0484]
[1765554263813,0.00011681,90478.0,90477.0,0.11591]
[1765554265490,0.00161868,90478.0,90477.0,0.002]
[1765554265699,0.04480668,90478.0,90477.0,0.002]
[1765554265886,0.043188,90464.0,90460.0,0.0110546]
[1765554266092,0.043188,90462.0,90461.0,0.01105448]
[1765554266293,0.043188,90470.0,90465.0,0.01105399]
[1765554266626,0.23213411,90465.0,90461.0,0.01105448]
[1765554266828,0.043188,90462.0,90459.0,0.01105473]
[1765554267109,0.04468987,90462.0,90460.0,0.002]
[1765554267310,0.043188,90461.0,90460.0,0.002]
[1765554267556,0.00150187,90462.0,90460.0,0.002]